[Event "XLIX Sevilla Open 2024"]
[Site "?"]
[Date "2024.01.12"]
[Round "1.6"]
[White "Navarro Coloma, Antonio"]
[Black "Druska, Juraj"]
[Result "0-1"]
[ECO "A48"]
[WhiteElo "1745"]
[BlackElo "2468"]
[Annotator "TA"]
[PlyCount "66"]
[EventDate "2024.01.12"]
[EventType "swiss"]
[SourceTitle "playchess.com"]
[Source "ChessBase"]
[SourceQuality "1"]
[TimeControl "5400+30"]

{[%evp 11,66,-10,-19,-14,-18,-18,13,0,0,10,16,-15,-21,-16,-15,-34,-4,0,0,-162,-151,-145,261,264,236,-87,-73,-116,-124,-122,-114,-187,-179,-365,-373,-339,-332,-437,-437,-437,-437,-437,-437,-479,-479,-468,-466,-479,-360,-365,-360,-343,-323,-518,-513,-489,-493]} 1. d4 {[%emt 0:00:04]} Nf6 {[%emt 0:03:39]} 2. Nf3 {[%emt 0:00:06]} g6 {[%emt 0:00:32]} 3. Bf4 {[%emt 0:00:07]} Bg7 {[%emt 0:00:33]} 4. e3 {[%emt 0:00:08]} O-O {[%emt 0:00:20]} 5. Bd3 {[%emt 0:00:19]} d6 {[%emt 0:00:14]} 6. Nbd2 {[%emt 0:00:16]} Nc6 {[%emt 0:00:35]} 7. O-O {[%emt 0:00:31] A48: 1 d4 Nf6 2 Nf3 g6: Torre, London and Colle Systems.} Nh5 {[%emt 0:02:29]} 8. Bg5 {[%emt 0:00:11] [#]} f6 $146 {[%emt 0:00:57]} ({Predecessor:} 8... h6 9. Bh4 g5 10. Nxg5 Nf6 11. Ngf3 Kh8 12. c3 Rg8 13. Qc2 a6 14. Rfe1 Bf8 {1-0 Ivanescu,M (1603)-Wu,L (1320) CAN-ch U10 Windsor 2016 (5.88)}) 9. Bh4 {[%emt 0:00:12] The position is equal.} e5 {[%emt 0:00:17]} 10. c3 {[%emt 0:03:00]} Qe8 {[%emt 0:10:29]} 11. Qc2 {[%emt 0:05:06]} f5 {[%emt 0:04:38]} 12. dxe5 {[%emt 0:01:46]} dxe5 {[%emt 0:00:42]} 13. e4 {[%emt 0:00:24]} h6 {[%emt 0:08:21]} 14. exf5 {[%emt 0:04:01]} gxf5 {[%emt 0:00:11]} 15. g4 $2 {[%emt 0:03:48] [#]} Qg6 $19 {[%emt 0:06:30]} 16. Kh1 {[%emt 0:02:33]} Qxg4 {[%emt 0:00:17][%mdl 8192]} (16... Nf4 $17 {stays on course. ...Nxd3 would be deadly.} 17. Bc4+ Kh8) 17. Rg1 $18 {[%emt 0:01:02]} Qf4 {[%emt 0:00:15]} 18. Bg3 $2 {[%emt 0:00:51]} ({White has to play} 18. Rg6 $18 Kh7 19. Bg3 {[%mdl 64] Trapped Piece} (19. Rag1 e4 $11) 19... Kxg6 20. Bxf4 Nxf4 21. Nh4+ Kh7 22. Bxf5+ (22. Nxf5 Nxd3 23. Nxg7 Kxg7 $18) 22... Bxf5 23. Nxf5) 18... Nxg3+ $17 {[%emt 0:00:42]} 19. Rxg3 {[%emt 0:00:05] Hoping for Rag1.} Be6 {[%emt 0:06:53]} 20. Rag1 {[%emt 0:00:49]} Rf7 {[%emt 0:00:10] Black is more active.} 21. Bb5 {[%emt 0:05:35] [#]} (21. Ne1 $17) 21... Rd8 $1 $19 {[%emt 0:05:07]} (21... Bxa2 $2 22. b3 Kh8 23. Qxa2 $18) 22. Qa4 $2 {[%emt 0:01:36]} (22. Nf1 {was worth a try.}) 22... Qxa4 {[%emt 0:00:57]} (22... Rxd2 23. Qxf4 exf4 24. Rxg7+ Rxg7 25. Rxg7+ Kxg7 26. Nxd2 $19) 23. Bxa4 {[%emt 0:00:06]} e4 {[%emt 0:00:19]} (23... Bxa2 24. Bxc6 bxc6 25. b3 $17 (25. Nxe5 $2 Rxd2 26. Nxf7 Bd5+ 27. f3 Kf8 $19)) 24. Bxc6 {[%emt 0:03:55]} exf3 {[%emt 0:00:17]} ({Worse is} 24... bxc6 25. Ne5 Rxd2 26. Nxf7 $17) 25. Nxf3 {[%emt 0:00:09][%cal Of3e5]} bxc6 {[%emt 0:00:08]} 26. Ne5 {[%emt 0:00:07]} Re7 {[%emt 0:08:51]} 27. Ng6 {[%emt 0:02:48]} Ree8 {[%emt 0:04:26] White must now prevent ...Bd5+.} ({Don't blunder} 27... Bd5+ $2 28. f3 Red7 29. Ne5 $19) 28. Nf4 {[%emt 0:01:31]} Rd7 {[%emt 0:00:37]} 29. Nh5 {[%emt 0:01:35]} Ree7 {[%emt 0:00:10]} 30. Nf6+ {[%emt 0:00:29]} Kf8 {[%emt 0:00:15]} 31. Nxd7+ {[%emt 0:00:59]} Rxd7 {[%emt 0:00:02]} 32. h4 $2 {[%emt 0:01:32]} (32. f3 {was called for.}) 32... f4 {[%emt 0:04:33]} 33. Rg6 {[%emt 0:01:36]} Bf5 {[%emt 0:00:15] Weighted Error Value: White=0.67/Black=0.29 (precise)} (33... Bxa2 $2 {is the wrong capture.} 34. Kh2 $19) 0-1

[Event "XLIX Sevilla Open 2024"]
[Site "?"]
[Date "2024.01.12"]
[Round "1.7"]
[White "Kaasen, Tor Fredrik"]
[Black "Munoz Mesa, Miguel Angel"]
[Result "1-0"]
[ECO "D30"]
[WhiteElo "2468"]
[BlackElo "1741"]
[Annotator "TA"]
[PlyCount "53"]
[EventDate "2024.01.12"]
[EventType "swiss"]
[SourceTitle "playchess.com"]
[Source "ChessBase"]
[SourceQuality "1"]
[TimeControl "5400+30"]

{[%evp 9,53,32,45,29,51,45,34,38,33,33,46,39,57,39,88,81,109,98,117,136,154,141,138,140,185,162,223,222,213,215,208,227,224,186,239,242,303,303,310,300,303,296,677,671,628,557]} 1. d4 {[%emt 0:00:33]} d5 {[%emt 0:00:07]} 2. c4 {[%emt 0:00:30]} e6 {[%emt 0:00:19]} 3. Nf3 {[%emt 0:00:37]} c6 {[%emt 0:00:20]} 4. Qc2 {[%emt 0:01:37]} g6 {[%emt 0:00:36]} 5. g3 {[%emt 0:01:41]} Bg7 {[%emt 0:00:19]} 6. Bg2 {[%emt 0:00:34] D30: Queen's Gambit Declined: Systems without Nc3.} Nd7 {[%emt 0:00:28]} 7. O-O {[%emt 0:00:58]} Ne7 {[%emt 0:00:12]} 8. e4 {[%emt 0:01:36] White is slightly better.} dxe4 {[%emt 0:00:31]} 9. Qxe4 {[%emt 0:00:18] [#]} Nf6 $146 {[%emt 0:00:16]} ({Predecessor:} 9... O-O 10. Nc3 Nf5 11. Rd1 Qa5 12. Bf4 Qb4 13. Qe2 Nb6 14. c5 Nd5 15. Nxd5 exd5 {½-½ Polugaevsky,L (2625)-Ljubojevic,L (2590) Interzonal-11a 1979 (13)}) 10. Qe2 {[%emt 0:01:32]} O-O {[%emt 0:00:26][%cal Ob7b5]} 11. Nc3 {[%emt 0:00:40]} Nf5 {[%emt 0:00:58] [#]} (11... b5 $1 $14) 12. Rd1 $1 $16 {[%emt 0:00:57] White now steadily converts the win.} Qa5 {[%emt 0:02:41]} 13. Bf4 {[%emt 0:01:28]} Rd8 {[%emt 0:01:08]} 14. a3 {[%emt 0:03:14]} Re8 {[%emt 0:01:28]} 15. b4 {[%emt 0:00:45]} Qd8 {[%emt 0:00:06]} 16. h3 {[%emt 0:01:15] White is more active.} Nh5 {[%emt 0:01:12] [#]} 17. Bg5 {[%emt 0:01:04]} f6 {[%emt 0:00:29]} (17... Nf6 {was necessary.} 18. g4 Ne7) 18. Bc1 $18 {[%emt 0:00:53] Strongly threatening g4.} Nhxg3 {[%emt 0:03:58]} 19. fxg3 {[%emt 0:00:13]} Nxg3 {[%emt 0:00:10]} 20. Qf2 {[%emt 0:01:13]} Qc7 {[%emt 0:00:44]} 21. Bb2 {[%emt 0:01:20]} Bd7 {[%emt 0:01:25] [#]} (21... Nh5 {keeps fighting.} 22. Ne4 Nf4) 22. Ne5 $1 {[%emt 0:02:42][%mdl 512]} Nf5 {[%emt 0:00:02]} (22... Nh5 23. Nxd7) 23. Nxd7 {[%emt 0:00:33]} Qxd7 {[%emt 1:24:05]} 24. Ne4 {[%emt 0:00:11]} b6 {[%emt 0:00:00]} 25. d5 {[%emt 0:01:00]} e5 $2 {[%emt 0:00:00]} (25... cxd5 26. cxd5 (26. Bxf6 d4 $18) 26... e5) 26. dxc6 {[%emt 0:00:31]} Qxc6 {[%emt 0:00:00] [#]} 27. Nd6 $1 {[%emt 0:01:00][%mdl 576] Against Qc8. Discovered Attack.   Weighted Error Value: White=0.04 (flawless) /Black=0.47} 1-0

[Event "XLIX Sevilla Open 2024"]
[Site "?"]
[Date "2024.01.12"]
[Round "1.8"]
[White "Mariscal Olmedo, Francisco"]
[Black "Marin, Mihail"]
[Result "0-1"]
[ECO "A80"]
[WhiteElo "1735"]
[BlackElo "2449"]
[Annotator "RC"]
[PlyCount "76"]
[EventDate "2024.01.12"]
[EventType "swiss"]
[SourceTitle "playchess.com"]
[Source "ChessBase"]
[SourceQuality "1"]
[TimeControl "5400+30"]

1. d4 {[%emt 0:00:04]} e6 {[%emt 0:00:07]} 2. Nf3 {[%emt 0:00:12]} f5 {[%emt 0:00:06]} 3. e3 {[%emt 0:00:57]} Nf6 {[%emt 0:00:04]} 4. Bd3 {[%emt 0:01:02]} b6 {[%emt 0:00:27]} 5. Qe2 {[%emt 0:02:19]} Bb7 {[%emt 0:00:14]} 6. Nbd2 {[%emt 0:03:52]} Ne4 {[%emt 0:00:31]} 7. O-O {[%emt 0:03:42]} Bd6 {[%emt 0:08:31]} 8. Ne5 {[%emt 0:04:49]} Bxe5 {[%emt 0:04:46]} 9. dxe5 {[%emt 0:02:04]} Nc5 {[%emt 0:00:12]} 10. f4 {[%emt 0:06:30]} Nxd3 {[%emt 0:03:37]} 11. cxd3 {[%emt 0:02:51]} Nc6 {[%emt 0:05:59]} 12. a3 {[%emt 0:02:46]} d6 {[%emt 0:03:08]} 13. d4 {[%emt 0:11:24]} dxe5 {[%emt 1:09:18]} 14. fxe5 {[%emt 0:01:49]} h5 {[%emt 0:00:00]} 15. Qc4 {[%emt 0:07:26]} Ne7 {[%emt 0:00:00]} 16. Nf3 {[%emt 0:03:11]} Bd5 {[%emt 0:00:00]} 17. Qa4+ {[%emt 0:04:24]} Bc6 {[%emt 0:00:00]} 18. Qc2 {[%emt 0:04:04]} Qd7 {[%emt 0:00:00]} 19. Bd2 {[%emt 0:04:01]} h4 {[%emt 0:00:00]} 20. Rac1 {[%emt 0:02:10]} h3 {[%emt 0:00:00]} 21. g3 {[%emt 0:04:20]} O-O-O {[%emt 0:00:00]} 22. Kf2 {[%emt 0:05:17]} Be4 {[%emt 0:00:00]} 23. Qc4 {[%emt 0:01:25]} Kb8 {[%emt 0:00:00]} 24. Ng5 {[%emt 0:02:11]} Bd5 {[%emt 0:00:00]} 25. Qc2 {[%emt 0:01:37]} Rh5 {[%emt 0:00:00]} 26. Nf3 {[%emt 0:02:13]} g5 {[%emt 0:00:00]} 27. Qc3 {[%emt 0:04:40]} Rc8 {[%emt 0:00:00]} 28. e4 {[%emt 0:02:44]} Bxe4 {[%emt 0:00:00]} 29. Nxg5 {[%emt 0:00:10]} Bb7 {[%emt 0:00:00]} 30. Qc4 {[%emt 0:00:45]} Nd5 {[%emt 0:00:00]} 31. Ke1 {[%emt 0:01:41]} Rg8 {[%emt 0:00:00]} 32. Nf3 {[%emt 0:02:24]} Rg4 {[%emt 0:00:00]} 33. Kd1 {[%emt 0:02:20]} Ne7 {[%emt 0:00:00]} 34. Bc3 {[%emt 0:01:31]} Rh8 {[%emt 0:00:00]} 35. Kc2 {[%emt 0:00:47]} Be4+ {[%emt 0:00:00]} 36. Kd2 {[%emt 0:01:01]} f4 {[%emt 0:00:00]} 37. Qe2 {[%emt 0:01:56]} fxg3 {[%emt 0:00:00]} 38. hxg3 {[%emt 0:01:04]} Bd5 {[%emt 0:00:00]} 0-1

[Event "XLIX Sevilla Open 2024"]
[Site "?"]
[Date "2024.01.12"]
[Round "1.9"]
[White "Ceres, Dragos"]
[Black "Cadenas Falcon, Jose Antonio"]
[Result "1-0"]
[ECO "C10"]
[WhiteElo "2438"]
[BlackElo "1733"]
[Annotator "RC"]
[PlyCount "43"]
[EventDate "2024.01.12"]
[EventType "swiss"]
[SourceTitle "playchess.com"]
[Source "ChessBase"]
[SourceQuality "1"]
[TimeControl "5400+30"]

1. e4 e6 2. d4 d5 3. Nc3 dxe4 4. Nxe4 Nd7 5. Be3 Ngf6 6. Nxf6+ Nxf6 7. Nf3 Be7 8. Bd3 O-O 9. Qe2 b6 10. O-O-O Bb7 11. Kb1 Qc8 12. h4 a5 13. Bg5 c5 14. Rh3 Ba6 15. c4 Bb7 16. d5 b5 17. Bxf6 Bxf6 18. Bxh7+ Kxh7 19. Ng5+ Kh6 20. Qe4 g6 21. Rg3 exd5 22. Nxf7+ {[%emt 0:11:00]} 1-0

[Event "XLIX Sevilla Open 2024"]
[Site "?"]
[Date "2024.01.12"]
[Round "1.10"]
[White "Castillo Trujillo, Luis"]
[Black "Bilych, Olexiy"]
[Result "0-1"]
[ECO "D55"]
[WhiteElo "1731"]
[BlackElo "2427"]
[Annotator "RC"]
[PlyCount "58"]
[EventDate "2024.01.12"]
[EventType "swiss"]
[SourceTitle "playchess.com"]
[Source "ChessBase"]
[SourceQuality "1"]
[TimeControl "5400+30"]

1. d4 {[%emt 0:00:04]} d5 {[%emt 0:00:16]} 2. c4 {[%emt 0:00:08]} e6 {[%emt 0:00:05]} 3. Nc3 {[%emt 0:00:09]} Nf6 {[%emt 0:00:26]} 4. Bg5 {[%emt 0:00:43]} Be7 {[%emt 0:03:37]} 5. e3 {[%emt 0:01:09]} h6 {[%emt 0:00:24]} 6. Bxf6 {[%emt 0:01:22]} Bxf6 {[%emt 0:00:06]} 7. Nf3 {[%emt 0:00:11]} O-O {[%emt 1:29:06]} 8. Rc1 {[%emt 0:01:22]} c6 {[%emt 0:00:00]} 9. Bd3 {[%emt 0:05:43]} Nd7 {[%emt 0:00:00]} 10. O-O {[%emt 0:01:13]} dxc4 {[%emt 0:00:00]} 11. Bxc4 {[%emt 0:00:11]} b5 {[%emt 0:00:00]} 12. Bd3 {[%emt 0:00:40]} Bb7 {[%emt 0:00:00]} 13. Bb1 {[%emt 0:15:27]} g6 {[%emt 0:00:00]} 14. Qb3 {[%emt 0:12:51]} Qb6 {[%emt 0:00:00]} 15. Rfd1 {[%emt 0:08:08]} Rfd8 {[%emt 0:00:00]} 16. h4 {[%emt 0:11:28]} c5 {[%emt 0:00:00]} 17. Ne4 {[%emt 0:12:17]} c4 {[%emt 0:00:00]} 18. Qc2 {[%emt 0:02:59]} Bg7 {[%emt 0:00:00]} 19. h5 {[%emt 0:05:02]} gxh5 {[%emt 0:00:00]} 20. Ng3 {[%emt 0:01:12]} Nf6 {[%emt 0:00:00]} 21. e4 {[%emt 0:01:39]} h4 {[%emt 0:00:00]} 22. Nxh4 {[%emt 0:04:09]} Rxd4 {[%emt 0:00:00]} 23. Rxd4 {[%emt 0:02:34]} Qxd4 {[%emt 0:00:00]} 24. Rd1 {[%emt 0:00:10]} Qe5 {[%emt 0:00:00]} 25. Nf3 {[%emt 0:01:30]} Qc5 {[%emt 0:00:00]} 26. e5 {[%emt 0:05:22]} Ng4 {[%emt 0:00:00]} 27. Nh5 {[%emt 0:03:39]} Bxe5 {[%emt 0:00:00]} 28. Rd7 {[%emt 0:00:34]} Be4 {[%emt 0:00:00]} 29. Qxe4 {[%emt 0:02:31]} Qxf2+ {[%emt 0:00:00]} 0-1

[Event "XLIX Sevilla Open 2024"]
[Site "?"]
[Date "2024.01.12"]
[Round "1.11"]
[White "Pap, Misa"]
[Black "Lozano Garcia, Antonio"]
[Result "1-0"]
[ECO "C10"]
[WhiteElo "2422"]
[BlackElo "1728"]
[Annotator "RC"]
[PlyCount "51"]
[EventDate "2024.01.12"]
[EventType "swiss"]
[SourceTitle "playchess.com"]
[Source "ChessBase"]
[SourceQuality "1"]
[TimeControl "5400+30"]

1. e4 {[%emt 0:01:18]} e6 {[%emt 0:00:11]} 2. d4 {[%emt 0:00:09]} d5 {[%emt 0:00:05]} 3. Nd2 {[%emt 0:01:07]} dxe4 {[%emt 0:00:39]} 4. Nxe4 {[%emt 0:00:07]} Bd7 {[%emt 0:00:03]} 5. Nf3 {[%emt 0:02:18]} Bc6 {[%emt 0:00:08]} 6. Bd3 {[%emt 0:05:03]} Nd7 {[%emt 0:00:12]} 7. O-O {[%emt 0:04:53]} Ngf6 {[%emt 0:00:19]} 8. Neg5 {[%emt 0:00:41]} Bxf3 {[%emt 0:03:08]} 9. Qxf3 {[%emt 0:00:39]} c6 {[%emt 0:01:04]} 10. Re1 {[%emt 0:03:39]} Be7 {[%emt 0:02:36]} 11. Qh3 {[%emt 0:06:10]} Nf8 {[%emt 0:03:16]} 12. c3 {[%emt 0:08:30]} Qd6 {[%emt 0:08:03]} 13. Re5 {[%emt 0:13:19]} N8d7 {[%emt 0:04:46]} 14. Re2 {[%emt 0:16:46]} Nf8 {[%emt 0:03:03]} 15. g3 {[%emt 0:02:28]} c5 {[%emt 0:05:28]} 16. Bb5+ {[%emt 0:02:55]} N6d7 {[%emt 0:00:55]} 17. Bf4 {[%emt 0:00:53]} Qb6 {[%emt 0:02:59]} 18. Bxd7+ {[%emt 0:08:05]} Nxd7 {[%emt 0:00:21]} 19. Nxe6 {[%emt 0:00:52]} fxe6 {[%emt 0:01:36]} 20. Rxe6 {[%emt 0:00:12]} Qxb2 {[%emt 0:00:42]} 21. Rae1 {[%emt 0:01:24]} O-O {[%emt 0:02:49]} 22. Rxe7 {[%emt 0:00:11]} Nf6 {[%emt 0:01:06]} 23. Be5 {[%emt 0:04:26]} Qxc3 {[%emt 0:07:13]} 24. Qe6+ {[%emt 0:00:50]} Kh8 {[%emt 0:00:36]} 25. Bxf6 {[%emt 0:00:31]} gxf6 {[%emt 0:00:42]} 26. Qe4 {[%emt 0:01:09]} 1-0

[Event "XLIX Sevilla Open 2024"]
[Site "?"]
[Date "2024.01.12"]
[Round "1.12"]
[White "Onate Gomez, Ildefonso"]
[Black "Zylka, Stanislaw"]
[Result "0-1"]
[ECO "A45"]
[WhiteElo "1726"]
[BlackElo "2411"]
[Annotator "RC"]
[PlyCount "76"]
[EventDate "2024.01.12"]
[EventType "swiss"]
[SourceTitle "playchess.com"]
[Source "ChessBase"]
[SourceQuality "1"]
[TimeControl "5400+30"]

1. d4 {[%emt 0:00:07]} c5 {[%emt 0:00:19]} 2. e3 {[%emt 0:00:28]} Nf6 {[%emt 0:00:19]} 3. Bd3 {[%emt 0:00:42]} b6 {[%emt 0:00:45]} 4. Qe2 {[%emt 0:00:21]} Bb7 {[%emt 0:00:15]} 5. Nf3 {[%emt 0:00:23]} g6 {[%emt 0:01:31]} 6. Nbd2 {[%emt 0:00:49]} Bg7 {[%emt 0:00:14]} 7. c3 {[%emt 0:00:13]} O-O {[%emt 0:00:33]} 8. O-O {[%emt 0:00:32]} Nc6 {[%emt 0:02:17]} 9. a3 {[%emt 0:00:35]} d5 {[%emt 0:00:44]} 10. Ne5 {[%emt 0:10:11]} Nxe5 {[%emt 0:13:08]} 11. dxe5 {[%emt 0:00:20]} Ne8 {[%emt 0:00:27]} 12. f4 {[%emt 0:03:19]} f6 {[%emt 0:00:37]} 13. Nf3 {[%emt 0:02:44]} fxe5 {[%emt 0:30:09]} 14. fxe5 {[%emt 0:16:57]} Nc7 {[%emt 0:00:43]} 15. Bd2 {[%emt 0:00:53]} Ne6 {[%emt 0:00:24]} 16. c4 {[%emt 0:01:26]} d4 {[%emt 0:00:29]} 17. exd4 {[%emt 0:01:12]} Nxd4 {[%emt 0:01:12]} 18. Qe3 {[%emt 0:04:41]} Nf5 {[%emt 0:21:25]} 19. Bxf5 {[%emt 0:10:22]} Rxf5 {[%emt 0:00:21]} 20. Bc3 {[%emt 0:00:15]} Qc7 {[%emt 0:00:56]} 21. Rad1 {[%emt 0:12:33]} Raf8 {[%emt 0:01:15]} 22. Rd3 {[%emt 0:01:02]} Qc6 {[%emt 0:00:55]} 23. Rf2 {[%emt 0:02:31]} Qa4 {[%emt 0:02:17]} 24. Qd2 {[%emt 0:09:18]} Qxc4 {[%emt 0:00:56]} 25. Rd8 {[%emt 0:00:21]} Qe4 {[%emt 0:07:20]} 26. h3 {[%emt 0:00:59]} Bc6 {[%emt 0:00:39]} 27. Re2 {[%emt 0:00:50]} Qc4 {[%emt 0:01:05]} 28. Rxf8+ {[%emt 0:06:32]} Rxf8 {[%emt 0:00:08]} 29. Qe3 {[%emt 0:03:04]} Bxf3 {[%emt 0:00:31]} 30. gxf3 {[%emt 0:00:36]} Qh4 {[%emt 0:00:07]} 31. Kh2 {[%emt 0:00:34]} Bh6 {[%emt 0:00:06]} 32. Qe4 {[%emt 0:02:07]} Qxe4 {[%emt 0:01:25]} 33. fxe4 {[%emt 0:02:12]} Kf7 {[%emt 0:00:12]} 34. Kg2 {[%emt 0:03:57]} Ke6 {[%emt 0:00:05]} 35. b4 {[%emt 0:00:24]} cxb4 {[%emt 0:00:11]} 36. axb4 {[%emt 0:00:15]} Rc8 {[%emt 0:00:07]} 37. Be1 {[%emt 0:00:52]} Bf4 {[%emt 0:00:12]} 38. Ra2 {[%emt 0:00:24]} Rc7 {[%emt 0:00:05]} 0-1

[Event "XLIX Sevilla Open 2024"]
[Site "?"]
[Date "2024.01.12"]
[Round "1.13"]
[White "Stella, Andrea"]
[Black "Ballina Amandi, Casimiro"]
[Result "1-0"]
[ECO "D36"]
[WhiteElo "2401"]
[BlackElo "1725"]
[Annotator "RC"]
[PlyCount "47"]
[EventDate "2024.01.12"]
[EventType "swiss"]
[SourceTitle "playchess.com"]
[Source "ChessBase"]
[SourceQuality "1"]
[TimeControl "5400+30"]

1. d4 {[%emt 0:00:32]} Nf6 {[%emt 0:00:06]} 2. c4 {[%emt 0:00:08]} e6 {[%emt 0:00:08]} 3. Nc3 {[%emt 0:00:05]} d5 {[%emt 0:00:20]} 4. cxd5 {[%emt 0:00:05]} exd5 {[%emt 0:00:14]} 5. Bg5 {[%emt 0:00:05]} Be7 {[%emt 0:00:21]} 6. e3 {[%emt 0:00:06]} Nbd7 {[%emt 0:00:41]} 7. Bd3 {[%emt 0:00:49]} O-O {[%emt 0:00:15]} 8. Nge2 {[%emt 0:06:43]} Re8 {[%emt 0:01:23]} 9. O-O {[%emt 0:00:35]} c6 {[%emt 0:02:56]} 10. Qc2 {[%emt 0:00:49]} h6 {[%emt 0:01:49]} 11. Bf4 {[%emt 0:00:18]} Nf8 {[%emt 0:02:26]} 12. h3 {[%emt 0:00:52]} Bd6 {[%emt 0:01:15]} 13. Bxd6 {[%emt 0:01:40]} Qxd6 {[%emt 0:00:16]} 14. Rab1 {[%emt 0:00:49]} N8h7 {[%emt 0:05:38]} 15. b4 {[%emt 0:07:24]} b5 {[%emt 0:01:54]} 16. a4 {[%emt 0:04:08]} a6 {[%emt 0:00:22]} 17. e4 {[%emt 0:05:34]} dxe4 {[%emt 0:01:36]} 18. Nxe4 {[%emt 0:00:31]} Qd5 {[%emt 0:04:39]} 19. N2g3 {[%emt 0:15:57]} Ng5 {[%emt 0:01:59]} 20. Nxf6+ {[%emt 0:03:36]} gxf6 {[%emt 0:00:14]} 21. Bf5 {[%emt 0:01:12]} Bb7 {[%emt 0:02:45]} 22. Nh5 {[%emt 0:07:28]} Qxd4 {[%emt 0:03:14]} 23. Rfd1 {[%emt 0:05:32]} Qe5 {[%emt 0:01:22]} 24. f4 {[%emt 0:00:09]} 1-0

[Event "XLIX Sevilla Open 2024"]
[Site "?"]
[Date "2024.01.12"]
[Round "1.14"]
[White "Danduprolu, Ridhi Varma"]
[Black "Fiorito, Joaquin"]
[Result "0-1"]
[ECO "B90"]
[WhiteElo "1722"]
[BlackElo "2401"]
[Annotator "RC"]
[PlyCount "126"]
[EventDate "2024.01.12"]
[EventType "swiss"]
[SourceTitle "playchess.com"]
[Source "ChessBase"]
[SourceQuality "1"]
[TimeControl "5400+30"]

1. e4 {[%emt 0:00:03]} c5 {[%emt 0:00:08]} 2. Nf3 {[%emt 0:00:09]} d6 {[%emt 0:00:06]} 3. d4 {[%emt 0:00:07]} cxd4 {[%emt 0:00:04]} 4. Nxd4 {[%emt 0:00:12]} Nf6 {[%emt 0:00:06]} 5. Nc3 {[%emt 0:00:10]} a6 {[%emt 0:00:04]} 6. f3 {[%emt 0:00:07]} e5 {[%emt 0:00:33]} 7. Nb3 {[%emt 0:00:04]} Be7 {[%emt 0:00:12]} 8. Be3 {[%emt 0:00:13]} Be6 {[%emt 0:00:05]} 9. Qd2 {[%emt 0:00:21]} h5 {[%emt 0:00:05]} 10. O-O-O {[%emt 0:00:42]} Nbd7 {[%emt 0:00:07]} 11. Kb1 {[%emt 0:02:21]} Rc8 {[%emt 0:01:16]} 12. Nd5 {[%emt 0:01:12]} Nxd5 {[%emt 0:00:25]} 13. exd5 {[%emt 0:00:07]} Bf5 {[%emt 0:00:04]} 14. Bd3 {[%emt 0:02:35]} Bxd3 {[%emt 0:00:06]} 15. Qxd3 {[%emt 0:00:08]} O-O {[%emt 0:03:26]} 16. c4 {[%emt 0:05:07]} f5 {[%emt 0:05:50]} 17. Rc1 {[%emt 0:04:16]} b6 {[%emt 0:00:31]} 18. Rhe1 {[%emt 0:06:21]} a5 {[%emt 0:01:43]} 19. Nd2 {[%emt 0:07:13]} Bg5 {[%emt 0:04:01]} 20. Qa3 {[%emt 0:05:16]} Nc5 {[%emt 0:00:33]} 21. Rc2 {[%emt 0:04:33]} Qf6 {[%emt 0:03:25]} 22. Bxc5 {[%emt 0:03:22]} Rxc5 {[%emt 0:01:03]} 23. Qd3 {[%emt 0:01:36]} Rfc8 {[%emt 0:03:38]} 24. Rec1 {[%emt 0:04:53]} Qh6 {[%emt 0:04:39]} 25. b3 {[%emt 0:05:42]} b5 {[%emt 0:02:01]} 26. g3 {[%emt 0:04:22]} bxc4 {[%emt 0:00:21]} 27. bxc4 {[%emt 0:00:17]} Rb8+ {[%emt 0:00:11]} 28. Ka1 {[%emt 0:02:20]} e4 {[%emt 0:00:06]} 29. fxe4 {[%emt 0:00:48]} fxe4 {[%emt 0:00:08]} 30. Qe2 {[%emt 0:01:59]} Bf6+ {[%emt 0:00:11]} 31. Rc3 {[%emt 0:00:11]} Bxc3+ {[%emt 0:00:15]} 32. Rxc3 {[%emt 0:00:05]} Rcc8 {[%emt 0:01:16]} 33. Qe3 {[%emt 0:01:41]} Qxe3 {[%emt 0:01:03]} 34. Rxe3 {[%emt 0:00:06]} Rf8 {[%emt 0:00:09]} 35. Re2 {[%emt 0:01:24]} e3 {[%emt 0:00:18]} 36. Rxe3 {[%emt 0:01:05]} Rf2 {[%emt 0:00:06]} 37. Rb3 {[%emt 0:00:16]} Re8 {[%emt 0:00:35]} 38. Nb1 {[%emt 0:01:09]} Rxh2 {[%emt 0:00:17]} 39. Ra3 {[%emt 0:00:36]} g5 {[%emt 0:00:25]} 40. Rxa5 {[%emt 0:00:55]} h4 {[%emt 0:01:36]} 41. gxh4 {[%emt 0:00:11]} gxh4 {[%emt 0:00:20]} 42. Ra3 {[%emt 0:00:36]} h3 {[%emt 0:00:28]} 43. Rg3+ {[%emt 0:00:38]} Kh7 {[%emt 0:00:05]} 44. a3 {[%emt 0:00:40]} Ree2 {[%emt 0:00:07]} 45. Nc3 {[%emt 0:00:11]} Re1+ {[%emt 0:00:07]} 46. Nb1 {[%emt 0:00:03]} Rhh1 {[%emt 0:00:07]} 47. Rb3 {[%emt 0:00:05]} Rxb1+ {[%emt 0:00:10]} 48. Rxb1 {[%emt 0:00:03]} Rxb1+ {[%emt 0:00:05]} 49. Kxb1 {[%emt 0:00:03]} h2 {[%emt 0:00:05]} 50. Kb2 {[%emt 0:00:03]} h1=Q {[%emt 0:00:07]} 51. a4 {[%emt 0:00:06]} Qe1 {[%emt 0:00:11]} 52. Kb3 {[%emt 0:00:08]} Qa5 {[%emt 0:00:05]} 53. Ka3 {[%emt 0:00:05]} Qc3+ {[%emt 0:00:04]} 54. Ka2 {[%emt 0:00:05]} Qxc4+ {[%emt 0:00:04]} 55. Kb1 {[%emt 0:00:05]} Qxd5 {[%emt 0:00:04]} 56. Kc1 {[%emt 0:00:08]} Qc4+ {[%emt 0:00:04]} 57. Kb1 {[%emt 0:00:04]} Qxa4 {[%emt 0:00:04]} 58. Kc1 {[%emt 0:00:05]} Qa2 {[%emt 0:00:03]} 59. Kd1 {[%emt 0:00:05]} Kg6 {[%emt 0:00:05]} 60. Kc1 {[%emt 0:00:05]} Kf5 {[%emt 0:00:04]} 61. Kd1 {[%emt 0:00:04]} Ke4 {[%emt 0:00:07]} 62. Kc1 {[%emt 0:00:02]} Kd3 {[%emt 0:00:06]} 63. Kd1 {[%emt 0:00:03]} Qb1# {[%emt 0:00:03]} 0-1